fUSD/lending_fUSD_20250503
["ID","MTS","AMOUNT","RATE_DAILY","PERIOD"]
[359662956,1746230408559,-250.0,0.00019504,2]
[359662957,1746230411291,-384.1518371,0.00019504,2]
[359662958,1746230417858,-218.63344187,0.00019504,2]
[359662959,1746230421099,-327.09609263,0.00019504,2]
[359662960,1746230427449,-170.30390737,0.00019504,2]
[359662961,1746230433678,-300.0,0.00019504,2]
[359662962,1746230460492,182.0,0.00030137,120]
[359662963,1746230472152,250.0,0.000193,2]
[359662964,1746230476967,2181.71,0.00018742,2]
[359662965,1746230506012,250.0,0.00017,2]
[359662966,1746230507206,300.0,0.00019,2]
[359662967,1746230510625,150.0,0.0001876,2]
[359662968,1746230551949,7400.31438116,0.000195,2]
[359662970,1746230677345,464.06,0.00016848,2]
[359662971,1746230677387,464.06,0.00019112,2]
[359662978,1746230957404,-375.28515118,0.00019503,2]
[359662979,1746230995837,1000.0,0.00018732,2]
[359662980,1746231013707,27151.0861668,0.0001949,2]
[359662984,1746231032293,-510.674481,0.00019503,2]
[359662985,1746231032306,-689.325519,0.00019503,2]
[359662986,1746231032316,-300.0,0.00019503,2]
[359662987,1746231032326,-250.0,0.00019503,2]
[359662988,1746231032336,-151.0,0.00019504,2]
[359662989,1746231032345,-151.0,0.00019504,2]
[359662990,1746231032355,-4835.572,0.00019504,2]
[359662991,1746231032364,-500.0,0.00019578,2]
[359662992,1746231032373,-207.4,0.00019592,2]
[359662993,1746231032383,-389.37480346,0.00019602,2]
[359662994,1746231032393,-165.86874321,0.00019603,2]
[359662995,1746231032403,-750.0,0.00019603,2]
[359662996,1746231032412,-161.07157223,0.00019603,2]
[359662997,1746231032422,-169.0254,0.00019603,2]
[359662998,1746231032432,-3969.53981296,0.00019603,2]
[359662999,1746231032443,-572.56828704,0.00019603,2]
[359663000,1746231032453,-2306.51111699,0.00019603,2]
[359663001,1746231032464,-193.48888301,0.00019603,2]
[359663002,1746231032474,-394.63237171,0.00019603,2]
[359663003,1746231032486,-105.36762829,0.00019603,2]
[359663004,1746231032495,-152.23555987,0.00019603,2]
[359663005,1746231032504,-10029.87008737,0.00019604,2]
[359663006,1746231032528,-5190.21163903,0.00019604,2]
[359663007,1746231032540,-362.5,0.00019604,2]
[359663008,1746231032564,-861.19573935,0.00019604,2]
[359663009,1746231032593,-42663.97113425,0.00019604,2]
[359663010,1746231032604,-1309.2651,0.00019604,2]
[359663011,1746231032613,-1000.0,0.00019604,2]
[359663012,1746231032623,-24811.8275,0.00019604,2]
[359663013,1746231032632,-389.3748034,0.00019635,2]
[359663014,1746231032642,-165.86874314,0.00019645,2]
[359663015,1746231032652,-389.3748034,0.00019668,2]
[359663016,1746231032662,-165.86874314,0.00019688,2]
[359663017,1746231032671,-151.0,0.00019691,2]
[359663018,1746231032680,-151.0,0.00019691,2]
[359663019,1746231032689,-668.65185757,0.00019691,2]
[359663020,1746231032699,-389.3748034,0.00019701,2]
[359663021,1746231032708,-450.0,0.00019702,2]
[359663023,1746231032718,-450.0,0.00019702,2]
[359663024,1746231032727,-450.0,0.00019702,2]
[359663025,1746231032737,-450.0,0.00019702,2]
[359663026,1746231032747,-450.0,0.00019702,2]
[359663027,1746231032757,-450.0,0.00019702,2]
[359663028,1746231032767,-450.0,0.00019702,2]
[359663029,1746231032777,-450.0,0.00019702,2]
[359663030,1746231032787,-450.0,0.00019702,2]
[359663031,1746231032796,-450.0,0.00019702,2]
[359663032,1746231032805,-450.0,0.00019702,2]
[359663033,1746231032815,-450.0,0.00019702,2]
[359663034,1746231032824,-450.0,0.00019702,2]
[359663035,1746231032834,-527.32,0.00019702,2]
[359663036,1746231032845,-364.38940204,0.00019702,2]
[359663037,1746231032855,-450.0,0.00019702,2]
[359663038,1746231032865,-450.0,0.00019702,2]
[359663039,1746231032876,-450.0,0.00019702,2]
[359663040,1746231032886,-450.0,0.00019702,2]
[359663041,1746231032900,-450.0,0.00019702,2]
[359663042,1746231032911,-450.0,0.00019702,2]
[359663043,1746231032922,-450.0,0.00019702,2]
[359663044,1746231032934,-450.0,0.00019702,2]
[359663045,1746231032944,-450.0,0.00019702,2]
[359663046,1746231032954,-450.0,0.00019702,2]
[359663047,1746231032963,-450.0,0.00019702,2]
[359663048,1746231032973,-450.0,0.00019702,2]
[359663049,1746231032982,-450.0,0.00019702,2]
[359663050,1746231032993,-450.0,0.00019702,2]
[359663051,1746231033003,-450.0,0.00019702,2]
[359663052,1746231033012,-450.0,0.00019702,2]
[359663053,1746231033023,-450.0,0.00019702,2]
[359663054,1746231033033,-776.18,0.00019702,2]
[359663055,1746231033044,-450.0,0.00019702,2]
[359663056,1746231033053,-450.0,0.00019702,2]
[359663057,1746231033063,-570.67,0.00019702,2]
[359663058,1746231033073,-450.0,0.00019702,2]
[359663059,1746231033083,-450.0,0.00019702,2]
[359663060,1746231033093,-450.0,0.00019702,2]
[359663061,1746231033103,-450.0,0.00019702,2]
[359663062,1746231033112,-450.0,0.00019702,2]
[359663063,1746231033122,-450.0,0.00019702,2]
[359663064,1746231033131,-450.0,0.00019702,2]
[359663065,1746231033141,-450.0,0.00019702,2]
[359663066,1746231033151,-450.0,0.00019702,2]
[359663067,1746231033160,-450.0,0.00019702,2]
[359663068,1746231033170,-450.0,0.00019702,2]
[359663069,1746231033180,-450.0,0.00019702,2]
[359663070,1746231033190,-450.0,0.00019702,2]
[359663071,1746231033199,-450.0,0.00019702,2]
[359663072,1746231033210,-450.0,0.00019702,2]
[359663073,1746231033220,-450.0,0.00019702,2]
[359663074,1746231033230,-450.0,0.00019702,2]
[359663075,1746231033240,-450.0,0.00019702,2]
[359663076,1746231033249,-450.0,0.00019702,2]
[359663077,1746231033259,-450.0,0.00019702,2]
[359663078,1746231033269,-450.0,0.00019702,2]
[359663079,1746231033279,-450.0,0.00019702,2]
[359663080,1746231033289,-450.0,0.00019702,2]
[359663081,1746231033299,-450.0,0.00019702,2]
[359663082,1746231033309,-450.0,0.00019702,2]
[359663083,1746231033318,-450.0,0.00019702,2]
[359663084,1746231033328,-450.0,0.00019702,2]
[359663085,1746231033338,-450.0,0.00019702,2]
[359663086,1746231033347,-450.0,0.00019702,2]
[359663087,1746231033356,-450.0,0.00019702,2]
[359663088,1746231033366,-457.70170811,0.00019702,2]
[359663089,1746231033375,-450.0,0.00019702,2]
[359663090,1746231033385,-450.0,0.00019702,2]
[359663091,1746231033395,-450.0,0.00019702,2]
[359663092,1746231033404,-450.0,0.00019702,2]
[359663093,1746231033414,-450.0,0.00019702,2]
[359663094,1746231033423,-261.26470891,0.00019702,2]
[359663095,1746231033433,-450.0,0.00019702,2]
[359663096,1746231033444,-450.0,0.00019702,2]
[359663097,1746231033454,-450.0,0.00019702,2]
[359663098,1746231033464,-450.0,0.00019702,2]
[359663099,1746231033473,-479.34,0.00019702,2]
[359663100,1746231033483,-450.0,0.00019702,2]
[359663101,1746231033493,-450.0,0.00019702,2]
[359663102,1746231033502,-450.0,0.00019702,2]
[359663103,1746231033515,-174.46099218,0.00019702,2]
[359663104,1746231033525,-498.69,0.00019702,2]
[359663105,1746231033535,-134.40597512,0.00019702,2]
[359663106,1746231033550,-124.99389185,0.00019702,2]
[359663107,1746231033559,-514.19942852,0.00019702,2]
[359663108,1746231033569,-6653.64,0.00019702,2]
[359663109,1746231033578,-485.27,0.00019702,2]
[359663110,1746231033587,-450.0,0.00019702,2]
[359663111,1746231033597,-450.0,0.00019702,2]
[359663112,1746231033607,-835.61,0.00019702,2]
[359663113,1746231033616,-450.0,0.00019702,2]
[359663114,1746231033626,-450.0,0.00019702,2]
[359663115,1746231033635,-450.0,0.00019702,2]
[359663116,1746231033644,-450.0,0.00019702,2]
[359663117,1746231033653,-508.02824913,0.00019702,2]
[359663118,1746231033663,-903.09,0.00019702,2]
[359663119,1746231033672,-450.0,0.00019702,2]
[359663120,1746231033682,-450.0,0.00019702,2]
[359663121,1746231033691,-450.0,0.00019702,2]
[359663122,1746231033701,-663.83,0.00019702,2]
[359663123,1746231033710,-5354.27,0.00019702,2]
[359663124,1746231033720,-450.0,0.00019702,2]
[359663125,1746231033729,-450.0,0.00019702,2]
[359663126,1746231033739,-450.0,0.00019702,2]
[359663127,1746231033748,-450.0,0.00019702,2]
[359663128,1746231033758,-450.0,0.00019702,2]
[359663129,1746231033767,-450.0,0.00019702,2]
[359663130,1746231033776,-450.0,0.00019702,2]
[359663131,1746231033786,-450.0,0.00019702,2]
[359663132,1746231033795,-450.0,0.00019702,2]
[359663133,1746231033805,-70.9477688,0.00019702,2]
[359663134,1746231038589,-443.76142195,0.00019702,2]
[359663135,1746231038599,-450.0,0.00019702,2]
[359663136,1746231038610,-450.0,0.00019702,2]
[359663137,1746231038619,-450.0,0.00019702,2]
[359663138,1746231038629,-450.0,0.00019702,2]
[359663139,1746231038639,-480.35,0.00019702,2]
[359663140,1746231038649,-450.0,0.00019702,2]
[359663141,1746231038658,-450.0,0.00019702,2]
[359663142,1746231038668,-450.0,0.00019702,2]
[359663143,1746231038678,-450.0,0.00019702,2]
[359663144,1746231038687,-450.0,0.00019702,2]
[359663145,1746231038697,-450.0,0.00019702,2]
[359663146,1746231038707,-549.97,0.00019702,2]
[359663147,1746231038717,-450.0,0.00019702,2]
[359663148,1746231038727,-450.0,0.00019702,2]
[359663149,1746231038736,-399.2321492,0.00019702,2]
[359663153,1746231040851,-96.7678508,0.00019702,2]
[359663154,1746231040861,-513.03,0.00019702,2]
[359663155,1746231040870,-390.2021492,0.00019702,2]
[359663156,1746231040889,-59.7978508,0.00019702,2]
[359663157,1746231040898,-450.0,0.00019702,2]
[359663158,1746231040908,-450.0,0.00019702,2]
[359663159,1746231040918,-450.0,0.00019702,2]
[359663160,1746231040928,-638.28,0.00019702,2]
[359663161,1746231040937,-450.0,0.00019702,2]
[359663162,1746231040946,-450.0,0.00019702,2]
[359663163,1746231040955,-2089.06,0.00019702,2]
[359663164,1746231040965,-450.0,0.00019702,2]
[359663165,1746231040974,-450.0,0.00019702,2]
[359663166,1746231040983,-450.0,0.00019702,2]
[359663167,1746231040992,-450.0,0.00019702,2]
[359663168,1746231041002,-450.0,0.00019702,2]
[359663169,1746231041010,-450.0,0.00019702,2]
[359663170,1746231041019,-454.91,0.00019702,2]
[359663171,1746231041029,-471.06,0.00019702,2]
[359663172,1746231041039,-450.0,0.00019702,2]
[359663173,1746231041049,-450.0,0.00019702,2]
[359663174,1746231041058,-450.0,0.00019702,2]
[359663175,1746231041068,-450.0,0.00019702,2]
[359663176,1746231041077,-450.0,0.00019702,2]
[359663177,1746231041086,-450.0,0.00019702,2]
[359663178,1746231041095,-450.0,0.00019702,2]
[359663179,1746231041104,-450.0,0.00019702,2]
[359663180,1746231041113,-450.0,0.00019702,2]
[359663181,1746231041123,-450.0,0.00019702,2]
[359663182,1746231041132,-1433.55,0.00019702,2]
[359663183,1746231041142,-450.0,0.00019702,2]
[359663184,1746231041151,-450.0,0.00019702,2]
[359663185,1746231041161,-515.95,0.00019702,2]
[359663186,1746231041170,-450.56,0.00019702,2]
[359663187,1746231041179,-450.0,0.00019702,2]
[359663188,1746231041187,-450.0,0.00019702,2]
[359663189,1746231041196,-450.0,0.00019702,2]
[359663191,1746231041204,-450.0,0.00019702,2]
[359663193,1746231041213,-450.0,0.00019702,2]
[359663195,1746231041222,-450.0,0.00019702,2]
[359663197,1746231041231,-555.14219764,0.00019702,2]
[359663199,1746231041240,-450.0,0.00019702,2]
[359663201,1746231041250,-450.0,0.00019702,2]
[359663203,1746231041259,-1117.58,0.00019702,2]
[359663205,1746231041268,-999.0,0.00019702,2]
[359663207,1746231041278,-450.0,0.00019702,2]
[359663209,1746231041288,-651.94,0.00019702,2]
[359663211,1746231041298,-450.0,0.00019702,2]
[359663213,1746231041307,-450.0,0.00019702,2]
[359663215,1746231041317,-475.31,0.00019702,2]
[359663217,1746231041327,-450.0,0.00019702,2]
[359663219,1746231041337,-1702.92,0.00019702,2]
[359663221,1746231041347,-450.0,0.00019702,2]
[359663223,1746231041357,-450.0,0.00019702,2]
[359663225,1746231041368,-450.0,0.00019702,2]
[359663227,1746231041378,-450.0,0.00019702,2]
[359663229,1746231041389,-450.0,0.00019702,2]
[359663231,1746231041399,-479.31,0.00019702,2]
[359663233,1746231041409,-1136.88,0.00019702,2]
[359663235,1746231041418,-450.0,0.00019702,2]
[359663237,1746231041428,-499.91,0.00019702,2]
[359663239,1746231041437,-450.0,0.00019702,2]
[359663241,1746231041446,-450.0,0.00019702,2]
[359663243,1746231041456,-450.0,0.00019702,2]
[359663245,1746231041466,-450.0,0.00019702,2]
[359663247,1746231041476,-450.0,0.00019702,2]
[359663249,1746231041486,-486.48,0.00019702,2]
[359663251,1746231041496,-3098.33,0.00019702,2]
[359663253,1746231041505,-1552.71,0.00019702,2]
[359663255,1746231041518,-4617.77,0.00019702,2]
[359663257,1746231041528,-450.0,0.00019702,2]
[359663259,1746231041537,-839.78,0.00019702,2]
[359663261,1746231041546,-952.55,0.00019702,2]
[359663263,1746231041557,-450.0,0.00019702,2]
[359663265,1746231041566,-450.0,0.00019702,2]
[359663268,1746231041578,-1096.26,0.00019702,2]
[359663270,1746231041587,-617.0,0.00019702,2]
[359663272,1746231041598,-549.73564454,0.00019702,2]
[359663274,1746231041608,-450.0,0.00019702,2]
[359663276,1746231041618,-887.939394,0.00019702,2]
[359663278,1746231041626,-450.0,0.00019702,2]
[359663279,1746231041635,-480.56,0.00019702,2]
[359663281,1746231041644,-450.0,0.00019702,2]
[359663283,1746231041654,-501.55,0.00019702,2]
[359663285,1746231041663,-1527.13,0.00019702,2]
[359663287,1746231041672,-450.0,0.00019702,2]
[359663289,1746231041681,-450.0,0.00019702,2]
[359663291,1746231041690,-727.59,0.00019702,2]
[359663293,1746231041699,-450.0,0.00019702,2]
[359663295,1746231041709,-450.0,0.00019702,2]
[359663297,1746231041718,-450.0,0.00019702,2]
[359663299,1746231041728,-450.0,0.00019702,2]
[359663301,1746231041737,-450.0,0.00019702,2]
[359663303,1746231041747,-493.72,0.00019702,2]
[359663305,1746231041755,-542.94,0.00019702,2]
[359663307,1746231041765,-450.0,0.00019702,2]
[359663309,1746231041773,-587.92,0.00019702,2]
[359663311,1746231041783,-484.92,0.00019702,2]
[359663313,1746231041792,-635.156915,0.00019702,2]
[359663315,1746231041802,-450.0,0.00019702,2]
[359663317,1746231041811,-450.0,0.00019702,2]
[359663319,1746231041821,-450.0,0.00019702,2]
[359663321,1746231041830,-450.0,0.00019702,2]
[359663323,1746231041839,-450.0,0.00019702,2]
[359663325,1746231041848,-471.0796644,0.00019703,2]
[359663327,1746231041859,-470.0,0.00019703,2]
[359663329,1746231041868,-450.0,0.00019703,2]
[359663331,1746231041878,-450.0,0.00019703,2]
[359663333,1746231041887,-450.0,0.00019703,2]
[359663335,1746231041896,-450.0,0.00019703,2]
[359663337,1746231041906,-450.0,0.00019703,2]
[359663339,1746231041916,-450.0,0.00019703,2]
[359663341,1746231041925,-450.0,0.00019703,2]
[359663343,1746231041934,-450.0,0.00019703,2]
[359663345,1746231041943,-450.0,0.00019703,2]
[359663347,1746231041952,-450.0,0.00019703,2]
[359663349,1746231041962,-450.0,0.00019703,2]
[359663351,1746231041971,-450.0,0.00019703,2]
[359663353,1746231041981,-450.0,0.00019703,2]
[359663355,1746231041990,-450.0,0.00019703,2]
[359663357,1746231041999,-450.0,0.00019703,2]
[359663359,1746231042008,-450.0,0.00019703,2]
[359663361,1746231042018,-782.56,0.00019703,2]
[359663363,1746231042028,-450.0,0.00019703,2]
[359663365,1746231042038,-450.0,0.00019703,2]
[359663367,1746231042047,-450.0,0.00019703,2]
[359663369,1746231042057,-450.0,0.00019703,2]
[359663371,1746231042066,-965.0,0.00019703,2]
[359663374,1746231042076,-531.42,0.00019703,2]
[359663376,1746231042086,-450.0,0.00019703,2]
[359663378,1746231042095,-450.0,0.00019703,2]
[359663379,1746231042104,-612.31,0.00019703,2]
[359663381,1746231042113,-802.5,0.00019703,2]
[359663383,1746231042123,-300.0,0.00019703,2]
[359663385,1746231042133,-450.0,0.00019703,2]
[359663387,1746231042142,-339.89105714,0.00019703,2]
[359663390,1746231042156,-146.42894286,0.00019703,2]
[359663392,1746231042165,-450.0,0.00019703,2]
[359663394,1746231042174,-450.0,0.00019703,2]
[359663396,1746231042184,-450.0,0.00019703,2]
[359663398,1746231042194,-450.0,0.00019703,2]
[359663400,1746231042203,-450.0,0.00019703,2]
[359663402,1746231042212,-450.0,0.00019703,2]
[359663404,1746231042222,-450.0,0.00019703,2]
[359663406,1746231042231,-450.0,0.00019703,2]
[359663408,1746231042240,-450.0,0.00019703,2]
[359663410,1746231042250,-450.0,0.00019703,2]
[359663412,1746231042259,-2540.43,0.00019703,2]
[359663414,1746231042269,-450.0,0.00019703,2]
[359663416,1746231042279,-443.38565678,0.00019703,2]
[359663418,1746231042288,-450.0,0.00019703,2]
[359663420,1746231042298,-507.17,0.00019703,2]
[359663422,1746231042307,-450.0,0.00019703,2]
[359663424,1746231042317,-462.48,0.00019703,2]
[359663426,1746231042326,-450.0,0.00019703,2]
[359663428,1746231042335,-1066.25,0.00019703,2]
[359663430,1746231042344,-450.0,0.00019703,2]
[359663432,1746231042353,-450.0,0.00019703,2]
[359663434,1746231042363,-450.0,0.00019703,2]
[359663436,1746231042372,-450.0,0.00019703,2]
[359663438,1746231042381,-450.0,0.00019703,2]
[359663440,1746231042392,-1097.96,0.00019703,2]
[359663441,1746231042401,-450.0,0.00019703,2]
[359663443,1746231042410,-450.0,0.00019703,2]
[359663445,1746231042420,-450.0,0.00019703,2]
[359663446,1746231042429,-450.0,0.00019703,2]
[359663447,1746231042439,-450.0,0.00019703,2]
[359663448,1746231042450,-450.0,0.00019703,2]
[359663449,1746231042459,-450.0,0.00019703,2]
[359663450,1746231042469,-450.0,0.00019703,2]
[359663451,1746231042478,-656.32,0.00019703,2]
[359663452,1746231042487,-450.0,0.00019703,2]
[359663453,1746231042496,-450.0,0.00019703,2]
[359663454,1746231042505,-489.03,0.00019703,2]
[359663455,1746231042518,-450.0,0.00019703,2]
[359663456,1746231042529,-450.0,0.00019703,2]
[359663457,1746231042539,-450.0,0.00019703,2]
[359663458,1746231042548,-450.0,0.00019703,2]
[359663459,1746231042558,-450.0,0.00019703,2]
[359663460,1746231042568,-583.28,0.00019703,2]
[359663461,1746231042577,-450.0,0.00019703,2]
[359663462,1746231042587,-450.0,0.00019703,2]
[359663463,1746231042596,-472.31764425,0.00019703,2]
[359663464,1746231042607,-450.0,0.00019703,2]
[359663465,1746231042616,-1069.14,0.00019703,2]
[359663466,1746231042626,-205.70456391,0.00019703,2]
[359663467,1746231042635,-450.0,0.00019703,2]
[359663468,1746231042645,-559.8,0.00019703,2]
[359663469,1746231042655,-450.0,0.00019703,2]
[359663470,1746231042664,-450.0,0.00019703,2]
[359663471,1746231042674,-568.08,0.00019703,2]
[359663472,1746231042683,-450.0,0.00019703,2]
[359663473,1746231042692,-1469.36,0.00019703,2]
[359663474,1746231042701,-450.0,0.00019703,2]
[359663475,1746231042711,-539.26,0.00019703,2]
[359663476,1746231042721,-703.58,0.00019703,2]
[359663477,1746231042730,-450.0,0.00019703,2]
[359663478,1746231042740,-450.0,0.00019703,2]
[359663479,1746231042749,-518.88,0.00019703,2]
[359663480,1746231042759,-450.0,0.00019703,2]
[359663481,1746231042769,-450.0,0.00019703,2]
[359663482,1746231042778,-540.87,0.00019703,2]
[359663483,1746231042787,-694.92,0.00019703,2]
[359663484,1746231042797,-450.0,0.00019703,2]
[359663485,1746231042806,-450.0,0.00019703,2]
[359663486,1746231042815,-697.81,0.00019703,2]
[359663487,1746231042825,-577.57,0.00019703,2]
[359663488,1746231042834,-688.86,0.00019703,2]
[359663489,1746231042844,-1682.8,0.00019703,2]
[359663490,1746231042853,-450.0,0.00019703,2]
[359663491,1746231042862,-577.78,0.00019703,2]
[359663492,1746231042871,-463.08,0.00019703,2]
[359663493,1746231042880,-1090.25,0.00019703,2]
[359663494,1746231042888,-745.86,0.00019703,2]
[359663495,1746231042896,-450.0,0.00019703,2]
[359663496,1746231042906,-450.0,0.00019703,2]
[359663497,1746231042915,-450.0,0.00019703,2]
[359663498,1746231042925,-450.0,0.00019703,2]
[359663499,1746231042933,-450.0,0.00019703,2]
[359663500,1746231042942,-500.09,0.00019703,2]
[359663501,1746231042951,-361.68422331,0.00019703,2]
[359663502,1746231042960,-892.21,0.00019703,2]
[359663503,1746231042969,-450.0,0.00019703,2]
[359663504,1746231042979,-462.34,0.00019703,2]
[359663505,1746231042991,-1123.42,0.00019703,2]
[359663506,1746231043000,-450.0,0.00019703,2]
[359663507,1746231043009,-450.0,0.00019703,2]
[359663508,1746231043018,-450.0,0.00019703,2]
[359663509,1746231043027,-543.61,0.00019703,2]
[359663510,1746231043036,-563.53,0.00019703,2]
[359663511,1746231043046,-701.94,0.00019703,2]
[359663512,1746231043055,-726.12,0.00019703,2]
[359663513,1746231043064,-1480.88,0.00019703,2]
[359663514,1746231043073,-450.0,0.00019703,2]
[359663515,1746231043082,-610.59,0.00019703,2]
[359663516,1746231043092,-786.91,0.00019703,2]
[359663517,1746231043101,-450.0,0.00019703,2]
[359663518,1746231043110,-450.0,0.00019703,2]
[359663519,1746231043120,-3655.49,0.00019703,2]
[359663520,1746231043129,-450.0,0.00019703,2]
[359663521,1746231043138,-450.0,0.00019703,2]
[359663522,1746231043148,-450.0,0.00019703,2]
[359663523,1746231043157,-874.91,0.00019703,2]
[359663524,1746231043166,-854.44,0.00019703,2]
[359663525,1746231043175,-4176.81,0.00019703,2]
[359663526,1746231043184,-732.29,0.00019703,2]
[359663527,1746231043194,-450.0,0.00019703,2]
[359663529,1746231043203,-450.0,0.00019703,2]
[359663530,1746231043212,-3876.87,0.00019703,2]
[359663531,1746231043221,-450.0,0.00019703,2]
[359663532,1746231043231,-450.0,0.00019703,2]
[359663533,1746231043240,-450.0,0.00019703,2]
[359663534,1746231043249,-450.0,0.00019703,2]
[359663536,1746231043258,-526.06,0.00019703,2]
[359663538,1746231043267,-326.04767781,0.00019703,2]
[359663540,1746231043276,-450.0,0.00019703,2]
[359663543,1746231043285,-664.83,0.00019703,2]
[359663545,1746231043294,-4159.82,0.00019703,2]
[359663547,1746231043303,-2267.11,0.00019703,2]
[359663549,1746231043312,-450.0,0.00019703,2]
[359663551,1746231043322,-90141.47,0.00019703,2]
[359663553,1746231043331,-968.43,0.00019703,2]
[359663554,1746231043341,-657.11,0.00019703,2]
[359663555,1746231043350,-4940.44,0.00019703,2]
[359663556,1746231043359,-28449.27,0.00019703,2]
[359663557,1746231043376,-2021.19,0.00019703,2]
[359663558,1746231043385,-527.49,0.00019703,2]
[359663559,1746231043394,-1788.25,0.00019703,2]
[359663560,1746231043403,-15764.95,0.00019703,2]
[359663561,1746231043412,-189.18569121,0.00019726,2]
[359663562,1746231043421,-165.86874314,0.0001973,2]
[359663563,1746231043431,-389.3748034,0.00019734,2]
[359663564,1746231043440,-1000.0,0.00019745,2]
[359663565,1746231043450,-150.0,0.00019758,2]
[359663566,1746231043459,-389.3748034,0.00019768,2]
[359663567,1746231043468,-165.86874314,0.00019773,2]
[359663568,1746231043479,-150.0,0.00019786,2]
[359663569,1746231043489,-1000.0,0.00019798,2]
[359663570,1746231043498,-707.4663224,0.00019799,2]
[359663571,1746231043508,-389.3748034,0.00019801,2]
[359663572,1746231043521,-150.0,0.00019806,2]
[359663573,1746231043531,-150.0,0.00019807,2]
[359663574,1746231043540,-150.0,0.00019808,2]
[359663575,1746231043550,-165.86874314,0.00019815,2]
[359663576,1746231043561,-150.0,0.00019816,2]
[359663577,1746231043571,-150.0,0.00019818,2]
[359663578,1746231043581,-150.0,0.00019828,2]
[359663579,1746231043591,-150.0,0.0001983,2]
[359663580,1746231043600,-389.3748034,0.00019834,2]
[359663581,1746231043611,-2000.0,0.0001984,2]
[359663582,1746231043620,-200.0,0.0001984,2]
[359663583,1746231043629,-150.0,0.00019843,2]
[359663584,1746231043639,-165.86874314,0.00019858,2]
[359663585,1746231043648,-150.0,0.00019865,2]
[359663586,1746231043661,-389.3748034,0.00019867,2]
[359663587,1746231043673,-150.0,0.00019872,2]
[359663588,1746231043686,-150.0,0.00019875,2]
[359663589,1746231043698,-150.0,0.00019875,2]
[359663590,1746231043710,-184.43217753,0.00019886,2]
[359663591,1746231043722,-233.19087666,0.00019886,2]
[359663592,1746231043732,-165.7836071,0.00019886,2]
[359663593,1746231043743,-850.5171201,0.00019888,2]
[359663594,1746231043754,-233.19087662,0.00019888,2]
[359663595,1746231043766,-500.0,0.0001989,2]
[359663596,1746231043778,-233.19087662,0.00019891,2]
[359663597,1746231043790,-165.78360708,0.00019891,2]
[359663598,1746231043801,-150.0,0.00019891,2]
[359663599,1746231043813,-12500.0,0.00019891,2]
[359663600,1746231043825,-184.43217753,0.00019893,2]
[359663601,1746231043837,-233.19087662,0.00019893,2]
[359663602,1746231043848,-233.19087662,0.00019895,2]
[359663603,1746231043859,-165.78360708,0.00019895,2]
[359663605,1746231043870,-151.0,0.00019898,2]
[359663607,1746231043880,-233.19087662,0.00019898,2]
[359663608,1746231043890,-151.0,0.00019898,2]
[359663610,1746231043901,-150.0,0.00019899,2]
[359663612,1746231043913,-151.0,0.00019899,2]